fUSD/lending_fUSD_20250607
["ID","MTS","AMOUNT","RATE_DAILY","PERIOD"]
[364862843,1749282643833,-501.75925322,0.00024873,2]
[364862844,1749282643843,-161.05896029,0.00024873,2]
[364862845,1749282643853,-154.89850209,0.00024873,2]
[364862846,1749282643866,-504.39927176,0.00024873,2]
[364862847,1749282643876,-500.0,0.00024873,2]
[364862848,1749282643886,-502.45705283,0.00024873,2]
[364862849,1749282643896,-503.04412446,0.00024873,2]
[364862850,1749282643907,-500.0,0.00024873,2]
[364862851,1749282643916,-521.76990781,0.00024873,2]
[364862853,1749282643927,-159.855648,0.00024873,2]
[364862854,1749282643938,-159.855648,0.00024873,2]
[364862855,1749282643948,-159.855648,0.00024873,2]
[364862856,1749282643958,-502.5372634,0.00024873,2]
[364862858,1749282643968,-159.81792377,0.00024873,2]
[364862859,1749282643978,-199.76676848,0.00024873,2]
[364862862,1749282643988,-500.0,0.00024873,2]
[364862864,1749282643998,-501.58070333,0.00024873,2]
[364862865,1749282644008,-500.46172288,0.00024873,2]
[364862866,1749282644017,-500.0,0.00024873,2]
[364862867,1749282644027,-153.43221915,0.00024873,2]
[364862868,1749282644036,-500.0,0.00024873,2]
[364862869,1749282644046,-511.83643538,0.00024873,2]
[364862870,1749282644055,-500.0,0.00024873,2]
[364862871,1749282644064,-500.0,0.00024873,2]
[364862872,1749282644072,-500.0,0.00024873,2]
[364862873,1749282644082,-500.0,0.00024873,2]
[364862874,1749282644092,-159.855648,0.00024873,2]
[364862875,1749282644102,-500.0,0.00024873,2]
[364862876,1749282644112,-151.83,0.00024873,2]
[364862877,1749282644121,-10800.8769359,0.00024883,2]
[364862878,1749282644131,-8324.2550983,0.00024883,2]
[364862879,1749282644140,-8679.643732,0.00024883,2]
[364862880,1749282644150,-151.0,0.00024883,7]
[364862882,1749282644160,-202.192633,0.00024883,7]
[364862884,1749282644170,-1297.19531017,0.0002489,2]
[364862885,1749282644180,-300.0,0.00024899,10]
[364862888,1749282644190,-151.0,0.000249,7]
[364862889,1749282644200,-151.0,0.000249,7]
[364862891,1749282644209,-151.0,0.000249,7]
[364862893,1749282644219,-151.0,0.000249,7]
[364862895,1749282644229,-220.734717,0.000249,7]
[364862897,1749282644238,-155.108199,0.000249,7]
[364862900,1749282644248,-151.0,0.000249,7]
[364862901,1749282644258,-151.0,0.000249,7]
[364862903,1749282644268,-151.0,0.000249,7]
[364862905,1749282644277,-151.0,0.000249,7]
[364862907,1749282644287,-151.0,0.000249,7]
[364862909,1749282644297,-151.0,0.000249,7]
[364862911,1749282644306,-314.743866,0.000249,7]
[364862913,1749282644317,-314.743866,0.000249,7]
[364862915,1749282644326,-151.0,0.000249,7]
[364862917,1749282644336,-1016.188715,0.000249,7]
[364862919,1749282644346,-1016.188715,0.000249,7]
[364862921,1749282644355,-163.913978,0.000249,7]
[364862923,1749282644365,-721.261256,0.000249,7]
[364862925,1749282644375,-163.913978,0.000249,7]
[364862927,1749282644384,-721.261256,0.000249,7]
[364862929,1749282644393,-224.860027,0.000249,7]
[364862931,1749282644403,-224.860027,0.000249,7]
[364862933,1749282644412,-151.736635,0.000249,7]
[364862935,1749282644422,-151.0,0.000249,7]
[364862937,1749282644431,-327.769811,0.000249,7]
[364862939,1749282644441,-151.0,0.000249,7]
[364862941,1749282644450,-367.356215,0.000249,7]
[364862943,1749282644461,-327.769811,0.000249,7]
[364862945,1749282644470,-367.356215,0.000249,7]
[364862947,1749282644480,-429.802131,0.000249,7]
[364862949,1749282644490,-429.802131,0.000249,7]
[364862951,1749282644500,-151.0,0.000249,7]
[364862953,1749282644510,-204.107327,0.000249,7]
[364862955,1749282644519,-151.0,0.000249,7]
[364862957,1749282644529,-151.0,0.000249,7]
[364862959,1749282644538,-151.0,0.000249,7]
[364862961,1749282644548,-151.0,0.000249,7]
[364862963,1749282644558,-151.0,0.000249,7]
[364862965,1749282644567,-151.0,0.000249,7]
[364862967,1749282644577,-1100.0,0.000249,9]
[364862969,1749282644587,-304740.655282,0.000249,2]
[364862971,1749282644596,-354.436695,0.000249,7]
[364862973,1749282644606,-163.07524585,0.000249,2]
[364862975,1749282644616,-354.436695,0.000249,7]
[364862977,1749282644625,-4137.01193359,0.000249,2]
[364862979,1749282644635,-263.61830402,0.000249,2]
[364862981,1749282644645,-202.192633,0.000249,7]
[364862983,1749282644654,-155.0,0.00024932,7]
[364862985,1749282644664,-155.0,0.00025,7]
[364862987,1749282644674,-4859.2,0.00025,3]
[364862989,1749282644683,-1000.0,0.00025098,2]
[364862991,1749282644692,-151.0,0.00025118,16]
[364862993,1749282644702,-494.09713034,0.0002521,12]
[364862995,1749282644711,-500.0,0.00025233,2]
[364862997,1749282644721,-163.22,0.0002527,2]
[364862999,1749282644730,-163.25,0.0002527,2]
[364863001,1749282644739,-326.31,0.0002527,2]
[364863003,1749282644749,-163.22,0.0002527,2]
[364863005,1749282644758,-344.66,0.0002527,2]
[364863007,1749282644768,-918.64,0.00025312,2]
[364863009,1749282644778,-907.51,0.00025312,2]
[364863011,1749282644788,-908.7,0.00025312,2]
[364863013,1749282644797,-454.54,0.00025312,2]
[364863015,1749282644807,-454.54,0.00025312,2]
[364863017,1749282644816,-454.54,0.00025312,2]
[364863019,1749282644826,-454.54,0.00025312,2]
[364863021,1749282644836,-454.65,0.00025312,2]
[364863023,1749282644845,-454.54,0.00025312,2]
[364863025,1749282644855,-454.54,0.00025312,2]
[364863027,1749282644869,-156.587,0.00025381,2]
[364863029,1749282644879,-215.0738,0.00025381,2]
[364863031,1749282644889,-241.4977769,0.00025385,2]
[364863033,1749282644902,-1034.5334842,0.00025421,2]
[364863035,1749282644912,-500.0,0.00025421,2]
[364863037,1749282644921,-526.05526299,0.00025421,2]
[364863039,1749282644931,-500.90964118,0.00025421,2]
[364863041,1749282644941,-501.50822778,0.00025421,2]
[364863043,1749282644951,-500.0,0.00025421,2]
[364863045,1749282644960,-1002.2800896,0.00025421,2]
[364863047,1749282644971,-1000.0,0.00025421,2]
[364863049,1749282644981,-500.0,0.00025421,2]
[364863051,1749282644990,-253.12,0.00025479,2]
[364863053,1749282644999,-300.27,0.00025507,2]
[364863055,1749282645009,-454.54,0.00025556,2]
[364863056,1749282645019,-3292.0,0.00025581,2]
[364863057,1749282645029,-494.09713034,0.0002559,13]
[364863058,1749282645039,-207.78377336,0.00025622,17]
[364863059,1749282645048,-4000.0,0.00025714,4]
[364863060,1749282645058,-250.0,0.00025766,2]
[364863061,1749282645068,-7214.96,0.00025786,2]
[364863062,1749282645078,-5904.82,0.00025786,2]
[364863063,1749282645088,-155.0,0.0002589,7]
[364863064,1749282645097,-150.41,0.00025955,2]
[364863065,1749282645107,-1500.0,0.00025968,2]
[364863066,1749282645118,-494.09713034,0.00025969,14]
[364863067,1749282645128,-2000.0,0.00026,2]
[364863068,1749282645138,-305.33,0.00026047,2]
[364863069,1749282645148,-304.17,0.00026047,2]
[364863070,1749282645158,-208.79538909,0.0002605,2]
[364863071,1749282645167,-454.54,0.00026134,2]
[364863072,1749282645177,-454.54,0.00026134,2]
[364863073,1749282645187,-454.54,0.00026134,2]
[364863074,1749282645197,-454.54,0.00026134,2]
[364863075,1749282645207,-454.54,0.00026134,2]
[364863076,1749282645221,-454.65,0.00026134,2]
[364863077,1749282645235,-454.65,0.00026134,2]
[364863078,1749282645245,-454.54,0.00026134,2]
[364863079,1749282645255,-454.54,0.00026134,2]
[364863080,1749282645265,-512.46,0.00026134,2]
[364863081,1749282645275,-454.54,0.00026134,2]
[364863082,1749282645376,-908.87,0.00026134,2]
[364863083,1749282645385,-907.7,0.00026134,2]
[364863084,1749282645394,-1342.5,0.00026137,2]
[364863085,1749282645403,-495.74977148,0.00026146,2]
[364863086,1749282645412,-30000.0,0.00026172,2]
[364863087,1749282645422,-9208.43,0.00026199,2]
[364863088,1749282645432,-302.52,0.00026229,2]
[364863089,1749282645442,-305.42,0.00026229,2]
[364863090,1749282645451,-303.32,0.00026229,2]
[364863091,1749282645460,-302.72,0.00026229,2]
[364863092,1749282645469,-300.04,0.00026229,2]
[364863093,1749282645479,-300.68,0.00026229,2]
[364863094,1749282645489,-301.63,0.00026229,2]
[364863095,1749282645498,-302.18,0.00026229,2]
[364863096,1749282645508,-494.09713034,0.00026348,14]
[364863097,1749282645517,-301.89,0.00026363,2]
[364863098,1749282645526,-300.16,0.00026363,2]
[364863099,1749282645536,-304.52,0.00026363,2]
[364863100,1749282645546,-305.11,0.00026379,2]
[364863101,1749282645556,-300.73,0.00026379,2]
[364863102,1749282645565,-300.99,0.00026379,2]
[364863103,1749282645575,-304.79,0.00026379,2]
[364863104,1749282645584,-301.98,0.00026379,2]
[364863105,1749282645594,-302.2,0.0002638,2]
[364863106,1749282645603,-303.47,0.00026392,2]
[364863107,1749282645612,-300.02,0.00026392,2]
[364863108,1749282645622,-796.51,0.00026402,2]
[364863109,1749282645631,-2000.0,0.00026516,2]
[364863110,1749282645640,-500.0,0.0002652,7]
[364863111,1749282645650,-668.90846372,0.00026575,30]
[364863112,1749282645659,-150.43130117,0.00026603,30]
[364863113,1749282645669,-302.9,0.00026622,2]
[364863114,1749282645680,-302.95,0.00026622,2]
[364863115,1749282645689,-303.16,0.00026622,2]
[364863116,1749282645698,-303.29,0.00026622,2]
[364863117,1749282645707,-303.84,0.00026622,2]
[364863118,1749282645717,-300.38,0.00026622,2]
[364863119,1749282645727,-304.56,0.00026622,2]
[364863120,1749282645736,-305.34,0.00026622,2]
[364863121,1749282645746,-152.0,0.00026626,3]
[364863122,1749282645755,-300.18,0.00026629,2]
[364863123,1749282645765,-305.73,0.00026629,2]
[364863124,1749282645774,-305.93,0.00026629,2]
[364863125,1749282645784,-300.06,0.00026629,2]
[364863126,1749282645794,-300.06,0.0002664,2]
[364863127,1749282645804,-303.41,0.00026676,2]
[364863128,1749282645813,-183.98,0.00026676,2]
[364863129,1749282645823,-668.90846372,0.00026685,30]
[364863130,1749282645833,-305.03,0.00026689,2]
[364863131,1749282645842,-301.76,0.00026689,2]
[364863132,1749282645852,-494.09713034,0.00026728,15]
[364863133,1749282645865,-302.97,0.0002673,2]
[364863134,1749282645875,-155.573485,0.00026734,6]
[364863135,1749282645885,-162.380719,0.0002675,2]
[364863136,1749282645895,-223.0315306,0.0002675,2]
[364863137,1749282645905,-301.32,0.00026786,2]
[364863138,1749282645915,-305.21,0.00026786,2]
[364863139,1749282645924,-668.90846372,0.00026795,30]
[364863140,1749282645935,-1164.0,0.00026805,2]
[364863141,1749282645944,-947.168,0.00026805,2]
[364863142,1749282645954,-636.0,0.00026805,2]
[364863143,1749282645963,-801.0,0.00026805,2]
[364863145,1749282645973,-557.0,0.00026805,2]
[364863147,1749282645983,-926.0,0.00026805,2]
[364863149,1749282645992,-589.0,0.00026805,2]
[364863151,1749282646002,-2000.0,0.00026805,2]
[364863152,1749282646011,-1274.0,0.00026805,2]
[364863153,1749282646022,-1255.0,0.00026805,2]
[364863154,1749282646032,-7018.0,0.00026805,2]
[364863155,1749282646042,-852.0,0.00026805,2]
[364863156,1749282646052,-150.0,0.00026805,2]
[364863157,1749282646061,-157.034,0.00026805,2]
[364863158,1749282646071,-191.454,0.00026805,2]
[364863159,1749282646080,-4082.0,0.00026805,2]
[364863160,1749282646089,-883.0,0.00026805,2]
[364863161,1749282646099,-253.12,0.00026849,2]
[364863162,1749282646108,-668.90846372,0.00026877,30]
[364863163,1749282646118,-412.35782268,0.000269,2]
[364863164,1749282646127,-412.35782268,0.000269,2]
[364863165,1749282646137,-412.35782268,0.000269,2]
[364863166,1749282646146,-412.35782268,0.000269,2]
[364863167,1749282646156,-412.35782268,0.000269,2]
[364863168,1749282646167,-412.35782268,0.000269,2]
[364863169,1749282646176,-412.35782268,0.000269,2]
[364863170,1749282646187,-412.35782268,0.000269,2]
[364863171,1749282646196,-173.06799534,0.00026904,30]
[364863172,1749282646206,-150.43130117,0.00026904,30]
[364863173,1749282646217,-170.61,0.00026913,2]
[364863174,1749282646228,-205.0,0.00026964,11]
[364863175,1749282646239,-300.69,0.00026979,2]
[364863176,1749282646249,-12124.38,0.00026983,2]
[364863177,1749282646259,-668.90846372,0.00026986,30]
[364863178,1749282646269,-35540.11299026,0.00027,2]
[364863179,1749282646278,-2000.0,0.00027,2]
[364863180,1749282646287,-2000.0,0.00027,2]
[364863181,1749282646297,-5027.0,0.00027,5]
[364863182,1749282646307,-1486.037473,0.00027064,2]
[364863183,1749282646316,-668.90846372,0.00027096,30]
[364863184,1749282646325,-5187.42,0.000271,2]
[364863185,1749282646335,-494.09713034,0.00027107,16]
[364863186,1749282646344,-202.192633,0.00027123,7]
[364863187,1749282646354,-153.0,0.00027123,2]
[364863188,1749282646363,-1000.0,0.00027123,3]
[364863189,1749282646373,-1000.0,0.00027123,3]
[364863190,1749282646382,-1000.0,0.00027123,3]
[364863191,1749282646391,-1000.0,0.00027123,3]
[364863192,1749282646400,-1000.0,0.00027123,3]
[364863193,1749282646410,-1026.0,0.00027123,3]
[364863194,1749282646419,-153.0,0.00027123,2]
[364863195,1749282646429,-153.0,0.00027123,2]
[364863196,1749282646439,-153.0,0.00027123,2]
[364863197,1749282646448,-153.0,0.00027123,2]
[364863198,1749282646458,-153.0,0.00027123,2]
[364863199,1749282646468,-153.0,0.00027123,2]
[364863200,1749282646479,-153.0,0.00027123,2]
[364863201,1749282646488,-153.0,0.00027123,2]
[364863202,1749282646497,-153.0,0.00027123,2]
[364863203,1749282646506,-153.0,0.00027123,2]
[364863204,1749282646515,-153.0,0.00027123,2]
[364863205,1749282646525,-153.0,0.00027123,2]
[364863206,1749282646534,-153.0,0.00027123,2]
[364863207,1749282646544,-153.0,0.00027123,2]
[364863208,1749282646552,-153.0,0.00027123,2]
[364863209,1749282646561,-153.0,0.00027123,2]
[364863210,1749282646570,-153.0,0.00027123,2]
[364863211,1749282646579,-153.0,0.00027123,2]
[364863212,1749282646588,-153.0,0.00027123,2]
[364863213,1749282646597,-153.0,0.00027123,2]
[364863214,1749282646606,-153.0,0.00027123,2]
[364863215,1749282646615,-153.0,0.00027123,2]
[364863216,1749282646625,-153.0,0.00027123,2]
[364863217,1749282646634,-153.0,0.00027123,2]
[364863218,1749282646643,-153.0,0.00027123,2]
[364863219,1749282646652,-153.0,0.00027123,2]
[364863220,1749282646662,-153.0,0.00027123,2]
[364863221,1749282646672,-153.0,0.00027123,2]
[364863222,1749282646682,-153.0,0.00027123,2]
[364863223,1749282646692,-153.0,0.00027123,2]
[364863224,1749282646701,-153.0,0.00027123,2]
[364863225,1749282646711,-153.0,0.00027123,2]
[364863226,1749282646721,-153.0,0.00027123,2]
[364863227,1749282646731,-153.0,0.00027123,2]
[364863228,1749282646740,-153.0,0.00027123,2]
[364863229,1749282646750,-153.0,0.00027123,2]
[364863230,1749282646759,-153.0,0.00027123,2]
[364863231,1749282646768,-153.0,0.00027123,2]
[364863232,1749282646778,-153.0,0.00027123,2]
[364863233,1749282646787,-153.0,0.00027123,2]
[364863234,1749282646796,-153.0,0.00027123,2]
[364863235,1749282646806,-153.0,0.00027123,2]
[364863236,1749282646815,-153.0,0.00027123,2]
[364863237,1749282646823,-153.0,0.00027123,2]
[364863238,1749282646832,-153.0,0.00027123,2]
[364863239,1749282646841,-153.0,0.00027123,2]
[364863240,1749282646850,-153.0,0.00027123,2]
[364863241,1749282646861,-153.0,0.00027123,2]
[364863242,1749282646870,-153.0,0.00027123,2]
[364863243,1749282646879,-153.0,0.00027123,2]
[364863244,1749282646889,-153.0,0.00027123,2]
[364863245,1749282646898,-197.0,0.00027123,2]
[364863246,1749282646909,-197.0,0.00027123,2]
[364863247,1749282646919,-197.0,0.00027123,2]
[364863248,1749282646928,-197.0,0.00027123,2]
[364863249,1749282646937,-197.0,0.00027123,2]
[364863250,1749282646947,-197.0,0.00027123,2]
[364863251,1749282646956,-197.0,0.00027123,2]
[364863252,1749282646966,-197.0,0.00027123,2]
[364863253,1749282646975,-197.0,0.00027123,2]
[364863254,1749282646984,-197.0,0.00027123,2]
[364863255,1749282646994,-197.0,0.00027123,2]
[364863256,1749282647003,-197.0,0.00027123,2]
[364863257,1749282647012,-197.0,0.00027123,2]
[364863258,1749282647021,-197.0,0.00027123,2]
[364863259,1749282647031,-197.0,0.00027123,2]
[364863260,1749282647040,-197.0,0.00027123,2]
[364863261,1749282647049,-197.0,0.00027123,2]
[364863262,1749282647059,-197.0,0.00027123,2]
[364863263,1749282647068,-197.0,0.00027123,2]
[364863264,1749282647078,-197.0,0.00027123,2]
[364863265,1749282647087,-197.0,0.00027123,2]
[364863266,1749282647097,-197.0,0.00027123,2]
[364863267,1749282647106,-197.0,0.00027123,2]
[364863268,1749282647115,-197.0,0.00027123,2]
[364863269,1749282647125,-197.0,0.00027123,2]
[364863270,1749282647134,-197.0,0.00027123,2]
[364863271,1749282647144,-197.0,0.00027123,2]
[364863272,1749282647153,-197.0,0.00027123,2]
[364863273,1749282647162,-197.0,0.00027123,2]
[364863274,1749282647172,-197.0,0.00027123,2]
[364863275,1749282647181,-197.0,0.00027123,2]
[364863276,1749282647190,-197.0,0.00027123,2]
[364863277,1749282647199,-197.0,0.00027123,2]
[364863278,1749282647208,-197.0,0.00027123,2]
[364863279,1749282647218,-197.0,0.00027123,2]
[364863280,1749282647232,-197.0,0.00027123,2]
[364863281,1749282647242,-197.0,0.00027123,2]
[364863282,1749282647251,-197.0,0.00027123,2]
[364863283,1749282647261,-197.0,0.00027123,2]
[364863284,1749282647271,-197.0,0.00027123,2]
[364863285,1749282647280,-197.0,0.00027123,2]
[364863286,1749282647289,-197.0,0.00027123,2]
[364863287,1749282647298,-197.0,0.00027123,2]
[364863288,1749282647308,-197.0,0.00027123,2]
[364863289,1749282647317,-197.0,0.00027123,2]
[364863290,1749282647328,-197.0,0.00027123,2]
[364863291,1749282647339,-1000.0,0.00027123,3]
[364863292,1749282647349,-197.0,0.00027123,2]
[364863293,1749282647358,-197.0,0.00027123,2]
[364863294,1749282647368,-1000.0,0.00027123,3]
[364863295,1749282647377,-197.0,0.00027123,2]
[364863296,1749282647386,-197.0,0.00027123,2]
[364863297,1749282647396,-197.0,0.00027123,2]
[364863298,1749282647405,-1000.0,0.00027123,3]
[364863299,1749282647415,-197.0,0.00027123,2]
[364863300,1749282647424,-1000.0,0.00027123,3]
[364863301,1749282647434,-197.0,0.00027123,2]
[364863302,1749282647443,-1000.0,0.00027123,3]
[364863303,1749282647452,-197.0,0.00027123,2]
[364863304,1749282647461,-1000.0,0.00027123,3]
[364863305,1749282647470,-197.0,0.00027123,2]
[364863306,1749282647479,-1000.0,0.00027123,3]
[364863307,1749282647489,-197.0,0.00027123,2]
[364863308,1749282647498,-1000.0,0.00027123,3]
[364863309,1749282647507,-197.0,0.00027123,2]
[364863310,1749282647516,-1000.0,0.00027123,3]
[364863311,1749282647525,-197.0,0.00027123,2]
[364863312,1749282647535,-1000.0,0.00027123,3]
[364863313,1749282647544,-197.0,0.00027123,2]
[364863314,1749282647553,-197.0,0.00027123,2]
[364863315,1749282647563,-1000.0,0.00027123,3]
[364863316,1749282647573,-197.0,0.00027123,2]
[364863317,1749282647582,-1000.0,0.00027123,3]
[364863318,1749282647591,-197.0,0.00027123,2]
[364863319,1749282647601,-1000.0,0.00027123,3]
[364863320,1749282647610,-197.0,0.00027123,2]
[364863321,1749282647619,-1000.0,0.00027123,3]
[364863322,1749282647629,-1000.0,0.00027123,3]
[364863323,1749282647638,-1000.0,0.00027123,3]
[364863324,1749282647647,-197.0,0.00027123,2]
[364863325,1749282647657,-1000.0,0.00027123,3]
[364863326,1749282647666,-197.0,0.00027123,2]
[364863327,1749282647675,-1000.0,0.00027123,3]
[364863328,1749282647684,-1000.0,0.00027123,3]
[364863329,1749282647693,-197.0,0.00027123,2]
[364863330,1749282647702,-1000.0,0.00027123,3]
[364863331,1749282647711,-197.0,0.00027123,2]
[364863332,1749282647721,-197.0,0.00027123,2]
[364863333,1749282647732,-1000.0,0.00027123,3]
[364863334,1749282647742,-197.0,0.00027123,2]
[364863335,1749282647750,-1000.0,0.00027123,3]
[364863336,1749282647760,-1000.0,0.00027123,3]
[364863337,1749282647770,-1000.0,0.00027123,3]
[364863338,1749282647779,-197.0,0.00027123,2]
[364863339,1749282647789,-1000.0,0.00027123,3]
[364863340,1749282647798,-197.0,0.00027123,2]
[364863341,1749282647807,-1000.0,0.00027123,3]
[364863342,1749282647816,-197.0,0.00027123,2]
[364863343,1749282647825,-229.0,0.00027123,3]
[364863344,1749282647835,-197.0,0.00027123,2]
[364863345,1749282647844,-197.0,0.00027123,2]
[364863346,1749282647854,-197.0,0.00027123,2]
[364863347,1749282647867,-197.0,0.00027123,2]
[364863348,1749282647877,-197.0,0.00027123,2]
[364863349,1749282647886,-197.0,0.00027123,2]
[364863350,1749282647895,-197.0,0.00027123,2]
[364863351,1749282647906,-197.0,0.00027123,2]
[364863352,1749282647915,-197.0,0.00027123,2]
[364863353,1749282647925,-197.0,0.00027123,2]
[364863354,1749282647936,-197.0,0.00027123,2]
[364863355,1749282647946,-197.0,0.00027123,2]
[364863356,1749282647955,-197.0,0.00027123,2]
[364863357,1749282647964,-197.0,0.00027123,2]
[364863358,1749282647974,-197.0,0.00027123,2]
[364863359,1749282647983,-197.0,0.00027123,2]
[364863360,1749282647993,-197.0,0.00027123,2]
[364863361,1749282648002,-197.0,0.00027123,2]
[364863362,1749282648011,-197.0,0.00027123,2]
[364863363,1749282648020,-197.0,0.00027123,2]
[364863364,1749282648030,-197.0,0.00027123,2]
[364863365,1749282648040,-197.0,0.00027123,2]
[364863366,1749282648050,-197.0,0.00027123,2]
[364863367,1749282648060,-197.0,0.00027123,2]
[364863368,1749282648069,-197.0,0.00027123,2]
[364863369,1749282648079,-1000.0,0.00027123,3]
[364863370,1749282648088,-1000.0,0.00027123,3]
[364863371,1749282648098,-1000.0,0.00027123,3]
[364863372,1749282648107,-1000.0,0.00027123,3]
[364863373,1749282648117,-1000.0,0.00027123,3]
[364863374,1749282648127,-4000.0,0.00027143,4]
[364863375,1749282648137,-157.0,0.00027185,7]
[364863376,1749282648146,-173.06799534,0.00027205,30]
[364863377,1749282648156,-668.90846372,0.00027205,30]
[364863378,1749282648166,-150.43130117,0.00027205,30]
[364863379,1749282648176,-6417.92878,0.0002729,2]
[364863380,1749282648185,-151.0,0.00027291,7]
[364863381,1749282648195,-150.0,0.00027296,2]
[364863382,1749282648205,-151.949847,0.00027297,7]
[364863383,1749282648214,-151.0,0.00027297,7]
[364863384,1749282648225,-151.0,0.00027297,7]
[364863385,1749282648235,-152.130342,0.00027297,7]
[364863386,1749282648244,-151.0,0.00027297,7]
[364863387,1749282648254,-151.0,0.00027297,7]
[364863388,1749282648264,-151.0,0.00027297,7]
[364863389,1749282648274,-151.0,0.00027297,7]
[364863390,1749282648284,-151.0,0.00027297,7]
[364863391,1749282648294,-151.0,0.00027297,7]
[364863392,1749282648304,-151.0,0.00027297,7]
[364863393,1749282648314,-151.0,0.00027297,7]
[364863394,1749282648324,-151.0,0.00027297,7]
[364863395,1749282648333,-151.0,0.00027297,7]
[364863396,1749282648343,-314.743866,0.00027297,7]
[364863397,1749282648353,-314.743866,0.00027297,7]
[364863398,1749282648362,-151.0,0.00027297,7]
[364863399,1749282648371,-1016.188715,0.00027297,7]
[364863400,1749282648381,-1016.188715,0.00027297,7]
[364863401,1749282648391,-163.913978,0.00027297,7]
[364863402,1749282648401,-721.261256,0.00027297,7]
[364863403,1749282648410,-163.913978,0.00027297,7]
[364863404,1749282648420,-721.261256,0.00027297,7]
[364863405,1749282648431,-224.860027,0.00027297,7]
[364863406,1749282648440,-224.860027,0.00027297,7]
[364863407,1749282648450,-151.0,0.00027297,7]
[364863408,1749282648459,-327.769811,0.00027297,7]
[364863409,1749282648469,-151.0,0.00027297,7]
[364863410,1749282648479,-367.356215,0.00027297,7]
[364863411,1749282648489,-327.769811,0.00027297,7]
[364863412,1749282648498,-367.356215,0.00027297,7]
[364863413,1749282648508,-429.802131,0.00027297,7]
[364863414,1749282648517,-429.802131,0.00027297,7]
[364863415,1749282648527,-1746.745216,0.00027297,7]
[364863416,1749282648536,-1746.745216,0.00027297,7]
[364863417,1749282648546,-151.0,0.00027297,7]
[364863418,1749282648555,-151.0,0.00027297,7]
[364863419,1749282648565,-151.0,0.00027297,7]
[364863420,1749282648574,-151.0,0.00027297,7]
[364863421,1749282648584,-151.0,0.00027297,7]
[364863422,1749282648594,-151.0,0.00027297,7]
[364863423,1749282648604,-151.0,0.00027297,7]
[364863424,1749282648613,-151.0,0.00027297,7]
[364863425,1749282648622,-196.712187,0.00027297,7]
[364863426,1749282648632,-196.712187,0.00027297,7]
[364863427,1749282648641,-151.0,0.00027297,7]
[364863428,1749282648651,-151.0,0.00027297,7]
[364863429,1749282648660,-151.0,0.00027297,7]
[364863430,1749282648670,-10000.0,0.00027297,7]
[364863431,1749282648682,-10000.0,0.00027297,7]
[364863432,1749282648692,-10000.0,0.00027297,7]
[364863433,1749282648702,-895.060117,0.00027297,7]
[364863434,1749282648712,-895.060117,0.00027297,7]
[364863435,1749282648721,-151.0,0.00027297,7]
[364863436,1749282648731,-151.0,0.00027297,7]
[364863437,1749282648742,-354.436695,0.00027297,7]
[364863438,1749282648752,-354.436695,0.00027297,7]